fUST/lending_fUST_20250107
["ID","MTS","AMOUNT","RATE_DAILY","PERIOD"]
[347986925,1736261443846,-150.03,0.00019178,2]
[347986927,1736261443855,-150.03,0.00019178,2]
[347986929,1736261443864,-150.03,0.00019178,2]
[347986943,1736261443987,-500.0,0.00019178,2]
[347986945,1736261444005,-1084.74,0.00019178,2]
[347986947,1736261444015,-500.0,0.00019178,2]
[347986950,1736261444025,-500.0,0.00019178,2]
[347986951,1736261444034,-1122.82,0.00019178,2]
[347986953,1736261444043,-500.0,0.00019178,2]
[347986955,1736261444054,-1471.74,0.00019178,2]
[347986957,1736261444064,-500.0,0.00019178,2]
[347986959,1736261444074,-500.0,0.00019178,2]
[347986961,1736261444083,-500.0,0.00019178,2]
[347986963,1736261444093,-500.0,0.00019178,2]
[347986966,1736261444103,-500.0,0.00019178,2]
[347986968,1736261444113,-500.0,0.00019178,2]
[347986970,1736261444123,-3443.05,0.00019178,2]
[347986971,1736261444132,-817.45,0.00019178,2]
[347986973,1736261444142,-500.0,0.00019178,2]
[347986975,1736261444152,-210.82117571,0.00019178,2]
[347986978,1736261444162,-500.0,0.00019178,2]
[347986980,1736261444171,-500.0,0.00019178,2]
[347986982,1736261444181,-500.0,0.00019178,2]
[347986984,1736261444191,-500.0,0.00019178,2]
[347986986,1736261444200,-500.0,0.00019178,2]
[347986988,1736261444210,-500.0,0.00019178,2]
[347986990,1736261444219,-500.0,0.00019178,2]
[347986992,1736261444228,-500.0,0.00019178,2]
[347986993,1736261444238,-500.0,0.00019178,2]
[347986996,1736261444248,-500.0,0.00019178,2]
[347986998,1736261444258,-662.45,0.00019178,2]
[347987000,1736261444268,-500.0,0.00019178,2]
[347987002,1736261444281,-500.0,0.00019178,2]
[347987004,1736261444290,-500.0,0.00019178,2]
[347987006,1736261444299,-500.0,0.00019178,2]
[347987008,1736261444310,-520.89925185,0.00019178,2]
[347987010,1736261444320,-1275.93,0.00019178,2]
[347987012,1736261444329,-1993.75,0.00019178,2]
[347987014,1736261444339,-500.0,0.00019178,2]
[347987016,1736261444348,-500.0,0.00019178,2]
[347987018,1736261444357,-500.0,0.00019178,2]
[347987020,1736261444366,-500.0,0.00019178,2]
[347987022,1736261444375,-500.0,0.00019178,2]
[347987023,1736261444384,-500.0,0.00019178,2]
[347987026,1736261444394,-500.0,0.00019178,2]
[347987028,1736261444403,-556.27516262,0.00019178,2]
[347987029,1736261444414,-500.0,0.00019178,2]
[347987032,1736261444423,-500.0,0.00019178,2]
[347987033,1736261444432,-500.0,0.00019178,2]
[347987035,1736261444442,-150.03,0.00019178,2]
[347987037,1736261444451,-150.03,0.00019178,2]
[347987039,1736261444461,-1793.86,0.00019178,2]
[347987041,1736261444471,-500.0,0.00019178,2]
[347987044,1736261444481,-500.0,0.00019178,2]
[347987046,1736261444490,-500.0,0.00019178,2]
[347987047,1736261444500,-500.0,0.00019178,2]
[347987049,1736261444509,-2163.81,0.00019178,2]
[347987051,1736261444519,-511.62522365,0.00019178,2]
[347987053,1736261444528,-500.0,0.00019178,2]
[347987055,1736261444538,-500.0,0.00019178,2]
[347987057,1736261444547,-500.0,0.00019178,2]
[347987059,1736261444558,-500.0,0.00019178,2]
[347987061,1736261444567,-2273.3,0.00019178,2]
[347987063,1736261444576,-500.0,0.00019178,2]
[347987065,1736261444585,-500.0,0.00019178,2]
[347987067,1736261444595,-500.0,0.00019178,2]
[347987069,1736261444604,-500.0,0.00019178,2]
[347987071,1736261444614,-500.0,0.00019178,2]
[347987073,1736261444623,-500.0,0.00019178,2]
[347987075,1736261444632,-500.0,0.00019178,2]
[347987077,1736261444642,-1138.74,0.00019178,2]
[347987079,1736261444651,-2146.96,0.00019178,2]
[347987081,1736261444660,-848.44,0.00019178,2]
[347987083,1736261444670,-537.54839231,0.00019178,2]
[347987085,1736261444679,-500.0,0.00019178,2]
[347987087,1736261444688,-500.0,0.00019178,2]
[347987089,1736261444697,-500.0,0.00019178,2]
[347987091,1736261444706,-500.0,0.00019178,2]
[347987093,1736261444716,-500.0,0.00019178,2]
[347987095,1736261444725,-500.0,0.00019178,2]
[347987097,1736261444734,-500.0,0.00019178,2]
[347987099,1736261444744,-582.08,0.00019178,2]
[347987101,1736261444754,-1941.09,0.00019178,2]
[347987103,1736261444763,-824.01,0.00019178,2]
[347987105,1736261444773,-500.0,0.00019178,2]
[347987107,1736261444782,-201.27142868,0.00019178,2]
[347987109,1736261444792,-500.0,0.00019178,2]
[347987111,1736261444802,-841.0,0.00019178,2]
[347987113,1736261444812,-798.84,0.00019178,2]
[347987115,1736261444821,-500.0,0.00019178,2]
[347987117,1736261444829,-500.0,0.00019178,2]
[347987119,1736261444839,-500.0,0.00019178,2]
[347987121,1736261444848,-500.0,0.00019178,2]
[347987123,1736261444857,-500.0,0.00019178,2]
[347987125,1736261444867,-1272.68,0.00019178,2]
[347987127,1736261444876,-500.0,0.00019178,2]
[347987129,1736261444887,-500.0,0.00019178,2]
[347987131,1736261444897,-500.0,0.00019178,2]
[347987133,1736261444907,-500.0,0.00019178,2]
[347987135,1736261444916,-500.0,0.00019178,2]
[347987137,1736261444926,-500.0,0.00019178,2]
[347987139,1736261444935,-500.0,0.00019178,2]
[347987140,1736261444944,-500.0,0.00019178,2]
[347987142,1736261444953,-500.0,0.00019178,2]
[347987144,1736261444963,-500.0,0.00019178,2]
[347987146,1736261444972,-43672.41,0.00019178,2]
[347987149,1736261444982,-500.0,0.00019178,2]
[347987150,1736261444991,-500.0,0.00019178,2]
[347987153,1736261445002,-500.0,0.00019178,2]
[347987154,1736261445012,-3906.27,0.00019178,2]
[347987157,1736261445022,-500.0,0.00019178,2]
[347987159,1736261445032,-500.0,0.00019178,2]
[347987161,1736261445042,-500.0,0.00019178,2]
[347987163,1736261445052,-500.0,0.00019178,2]
[347987165,1736261445063,-500.0,0.00019178,2]
[347987166,1736261445072,-503.63973987,0.00019178,2]
[347987168,1736261445082,-500.0,0.00019178,2]
[347987170,1736261445091,-500.0,0.00019178,2]
[347987172,1736261445101,-506.76696337,0.00019178,2]
[347987174,1736261445111,-2236.17,0.00019178,2]
[347987176,1736261445120,-1000.0,0.00019178,2]
[347987178,1736261445130,-500.0,0.00019178,2]
[347987181,1736261445139,-1300.02,0.00019178,2]
[347987182,1736261445148,-500.0,0.00019178,2]
[347987184,1736261445158,-1000.0,0.00019178,7]
[347987186,1736261445167,-500.0,0.00019178,2]
[347987188,1736261445177,-616.07,0.00019178,2]
[347987190,1736261445187,-500.0,0.00019178,2]
[347987192,1736261445196,-500.0,0.00019178,2]
[347987195,1736261445206,-500.0,0.00019178,2]
[347987196,1736261445215,-500.0,0.00019178,2]
[347987198,1736261445224,-500.85953805,0.00019178,2]
[347987200,1736261445234,-500.0,0.00019178,2]
[347987202,1736261445243,-1910.39,0.00019178,2]
[347987204,1736261445255,-500.0,0.00019178,2]
[347987206,1736261445264,-500.0,0.00019178,2]
[347987208,1736261445277,-500.0,0.00019178,2]
[347987211,1736261445287,-500.0,0.00019178,2]
[347987212,1736261445296,-500.0,0.00019178,2]
[347987214,1736261445305,-500.0,0.00019178,2]
[347987216,1736261445315,-500.0,0.00019178,2]
[347987218,1736261445325,-500.0,0.00019178,2]
[347987220,1736261445335,-500.0,0.00019178,2]
[347987222,1736261445345,-500.0,0.00019178,2]
[347987224,1736261445355,-500.0,0.00019178,2]
[347987226,1736261445364,-3672.5,0.00019178,2]
[347987228,1736261445374,-869.29,0.00019178,2]
[347987230,1736261445383,-500.0,0.00019178,2]
[347987232,1736261445392,-500.0,0.00019178,2]
[347987234,1736261445402,-495.21909787,0.00019178,2]
[347987236,1736261445412,-500.0,0.00019178,2]
[347987238,1736261445421,-500.0,0.00019178,2]
[347987240,1736261445430,-500.0,0.00019178,2]
[347987242,1736261445439,-500.0,0.00019178,2]
[347987244,1736261445448,-500.0,0.00019178,2]
[347987246,1736261445457,-500.0,0.00019178,2]
[347987248,1736261445466,-1087.16,0.00019178,2]
[347987250,1736261445475,-500.0,0.00019178,2]
[347987252,1736261445485,-500.0,0.00019178,2]
[347987254,1736261445495,-150.03,0.00019178,2]
[347987256,1736261445507,-1295.42,0.00019178,2]
[347987258,1736261445517,-500.0,0.00019178,2]
[347987260,1736261445526,-150.03,0.00019178,2]
[347987262,1736261445535,-500.0,0.00019178,2]
[347987264,1736261445544,-500.0,0.00019178,2]
[347987266,1736261445553,-2038.67,0.00019178,2]
[347987268,1736261445562,-1613.38,0.00019178,2]
[347987270,1736261445571,-169.124106,0.00019178,2]
[347987272,1736261445581,-153.6,0.00019178,2]
[347987274,1736261445590,-164.568037,0.00019178,2]
[347987276,1736261445599,-1730.84,0.000192,2]
[347987278,1736261445608,-151.0,0.000192,2]
[347987280,1736261445618,-619.0,0.000192,2]
[347987282,1736261445627,-308.9441,0.000192,2]
[347987284,1736261445635,-308.9441,0.000192,2]
[347987286,1736261445645,-151.0,0.00019207,4]
[347987288,1736261445655,-5000.0,0.00019211,2]
[347987290,1736261445664,-3215.97902436,0.00019245,2]
[347987292,1736261445672,-6660.83134104,0.00019252,2]
[347987294,1736261445681,-151.0,0.00019311,2]
[347987296,1736261445688,-5000.0,0.00019311,2]
[347987298,1736261445697,-5000.0,0.00019311,2]
[347987301,1736261445706,-151.0,0.00019314,2]
[347987303,1736261445716,-313.727476,0.00019314,2]
[347987306,1736261445726,-313.727476,0.00019314,2]
[347987308,1736261445735,-151.0,0.00019345,4]
[347987310,1736261445743,-500.0,0.00019376,2]
[347987312,1736261445754,-2000.0,0.000194,2]
[347987314,1736261445762,-3215.97902436,0.00019417,2]
[347987316,1736261445769,-1015.27707247,0.00019435,2]
[347987318,1736261445777,-9812.55,0.0001944,2]
[347987320,1736261445786,-500.0,0.00019452,2]
[347987323,1736261445796,-500.0,0.00019452,2]
[347987325,1736261445806,-150.03,0.00019452,2]
[347987327,1736261445815,-202.80946477,0.00019452,2]
[347987329,1736261445825,-150.03,0.00019452,2]
[347987331,1736261445835,-150.03,0.00019452,2]
[347987333,1736261445845,-152.1713225,0.00019452,2]
[347987335,1736261445854,-151.0,0.00019452,2]
[347987337,1736261445863,-589.15,0.00019452,3]
[347987339,1736261445872,-501.96,0.00019452,3]
[347987340,1736261445881,-151.0,0.00019452,2]
[347987341,1736261445891,-515.71948942,0.00019452,3]
[347987342,1736261445900,-313.727476,0.00019452,2]
[347987343,1736261445909,-313.727476,0.00019452,2]
[347987344,1736261445918,-313.727476,0.00019452,2]
[347987345,1736261445928,-313.727476,0.00019452,2]
[347987346,1736261445936,-313.727476,0.00019452,2]
[347987347,1736261445946,-313.727476,0.00019452,2]
[347987350,1736261445955,-313.727476,0.00019452,2]
[347987352,1736261445964,-313.727476,0.00019452,2]
[347987354,1736261445973,-313.727476,0.00019452,2]
[347987356,1736261445983,-313.727476,0.00019452,2]
[347987358,1736261445992,-313.727476,0.00019452,2]
[347987359,1736261446002,-313.727476,0.00019452,2]
[347987362,1736261446012,-500.0,0.00019452,3]
[347987364,1736261446021,-313.727476,0.00019452,2]
[347987366,1736261446031,-313.727476,0.00019452,2]
[347987368,1736261446041,-500.0,0.00019452,3]
[347987370,1736261446051,-500.0,0.00019452,3]
[347987372,1736261446062,-500.0,0.00019452,3]
[347987374,1736261446071,-454.810604,0.00019452,3]
[347987377,1736261446081,-500.0,0.00019452,3]
[347987379,1736261446090,-583.05,0.00019452,3]
[347987382,1736261446100,-500.0,0.00019452,3]
[347987384,1736261446108,-500.0,0.00019452,3]
[347987386,1736261446117,-500.0,0.00019452,3]
[347987388,1736261446126,-500.0,0.00019452,3]
[347987390,1736261446136,-500.0,0.00019452,3]
[347987392,1736261446145,-500.0,0.00019452,3]
[347987394,1736261446154,-500.0,0.00019452,3]
[347987411,1736261446264,-500.0,0.00019452,3]
[347987413,1736261446277,-500.0,0.00019452,3]
[347987415,1736261446286,-500.0,0.00019452,3]
[347987417,1736261446295,-500.0,0.00019452,3]
[347987419,1736261446304,-500.0,0.00019452,3]
[347987421,1736261446313,-505.05854635,0.00019452,3]
[347987423,1736261446322,-621.45911974,0.00019452,3]
[347987425,1736261446331,-500.0,0.00019452,3]
[347987427,1736261446341,-500.0,0.00019452,3]
[347987429,1736261446350,-500.0,0.00019452,3]
[347987431,1736261446359,-500.0,0.00019452,3]
[347987433,1736261446368,-500.0,0.00019452,3]
[347987435,1736261446377,-151.0,0.00019452,2]
[347987437,1736261446387,-151.0,0.00019452,2]
[347987439,1736261446396,-151.0,0.00019452,2]
[347987441,1736261446405,-151.0,0.00019452,2]
[347987443,1736261446414,-249.79290252,0.00019452,2]
[347987445,1736261446423,-500.0,0.00019452,3]
[347987447,1736261446432,-500.43767913,0.00019452,3]
[347987449,1736261446441,-580.2468322,0.00019452,3]
[347987451,1736261446450,-500.0,0.00019452,3]
[347987453,1736261446459,-500.0,0.00019452,3]
[347987455,1736261446470,-500.0,0.00019452,3]
[347987457,1736261446479,-736.34,0.00019452,3]
[347987459,1736261446488,-500.0,0.00019452,3]
[347987461,1736261446497,-500.0,0.00019452,3]
[347987463,1736261446510,-500.0,0.00019452,3]
[347987465,1736261446518,-500.0,0.00019452,3]
[347987467,1736261446527,-754.8,0.00019452,3]
[347987469,1736261446537,-500.0,0.00019452,3]
[347987471,1736261446546,-500.0,0.00019452,3]
[347987473,1736261446556,-500.0,0.00019452,3]
[347987476,1736261446565,-154.35204369,0.00019452,3]
[347987477,1736261446574,-513.94053674,0.00019452,3]
[347987480,1736261446584,-500.0,0.00019452,3]
[347987482,1736261446593,-503.9868919,0.00019452,3]
[347987484,1736261446603,-500.0,0.00019452,3]
[347987485,1736261446612,-500.0,0.00019452,3]
[347987488,1736261446622,-500.0,0.00019452,3]
[347987490,1736261446631,-500.0,0.00019452,3]
[347987491,1736261446641,-500.0,0.00019452,3]
[347987494,1736261446650,-500.0,0.00019452,3]
[347987496,1736261446660,-500.0,0.00019452,3]
[347987498,1736261446670,-500.0,0.00019452,3]
[347987500,1736261446679,-392.15526256,0.00019452,3]
[347987502,1736261446688,-528.77,0.00019452,3]
[347987503,1736261446700,-500.0,0.00019452,3]
[347987506,1736261446709,-500.0,0.00019452,3]
[347987508,1736261446718,-500.0,0.00019452,3]
[347987510,1736261446732,-506.54189711,0.00019452,3]
[347987512,1736261446743,-500.0,0.00019452,3]
[347987513,1736261446757,-500.0,0.00019452,3]
[347987515,1736261446767,-500.0,0.00019452,3]
[347987517,1736261446777,-500.0,0.00019452,3]
[347987519,1736261446786,-500.0,0.00019452,3]
[347987521,1736261446795,-500.0,0.00019452,3]
[347987523,1736261446805,-565.01,0.00019452,3]
[347987525,1736261446815,-726.9,0.00019452,2]
[347987527,1736261446825,-500.0,0.00019452,3]
[347987530,1736261446835,-500.0,0.00019452,3]
[347987532,1736261446845,-500.0,0.00019452,3]
[347987534,1736261446854,-500.0,0.00019452,3]
[347987536,1736261446863,-500.0,0.00019452,3]
[347987538,1736261446872,-500.0,0.00019452,3]
[347987540,1736261446881,-138.59325333,0.00019452,3]
[347987544,1736261446917,-253.94316365,0.00019173,2]
[347987547,1736261446928,-247.76595419,0.00019173,2]
[347987549,1736261446938,-361.40674667,0.00019452,3]
[347987551,1736261446947,-500.0,0.00019452,3]
[347987553,1736261446956,-500.0,0.00019452,3]
[347987555,1736261446966,-500.0,0.00019452,3]
[347987557,1736261446975,-500.0,0.00019452,3]
[347987559,1736261446984,-500.0,0.00019452,3]
[347987561,1736261446993,-500.0,0.00019452,3]
[347987563,1736261447006,-500.0,0.00019452,3]
[347987565,1736261447015,-893.05,0.00019452,3]
[347987567,1736261447025,-500.0,0.00019452,3]
[347987569,1736261447035,-500.0,0.00019452,3]
[347987571,1736261447047,-500.0,0.00019452,3]
[347987573,1736261447056,-10237.63,0.00019452,3]
[347987575,1736261447066,-168.61716528,0.00019452,3]
[347987577,1736261447076,-859.73,0.00019452,3]
[347987579,1736261447085,-500.0,0.00019452,3]
[347987581,1736261447095,-500.0,0.00019452,3]
[347987583,1736261447104,-460.36315757,0.00019452,3]
[347987585,1736261447113,-500.0,0.00019452,3]
[347987587,1736261447123,-509.77104108,0.00019452,3]
[347987589,1736261447132,-500.0,0.00019452,3]
[347987591,1736261447141,-500.0,0.00019452,3]
[347987593,1736261447150,-500.0,0.00019452,3]
[347987595,1736261447159,-500.0,0.00019452,3]
[347987597,1736261447168,-500.0,0.00019452,3]
[347987599,1736261447178,-500.0,0.00019452,3]
[347987601,1736261447187,-500.0,0.00019452,3]
[347987603,1736261447196,-500.0,0.00019452,3]
[347987605,1736261447205,-500.0,0.00019452,3]
[347987607,1736261447215,-500.0,0.00019452,3]
[347987609,1736261447223,-500.0,0.00019452,3]
[347987611,1736261447233,-500.0,0.00019452,3]
[347987613,1736261447242,-500.0,0.00019452,3]
[347987615,1736261447254,-500.0,0.00019452,3]
[347987617,1736261447265,-500.0,0.00019452,3]
[347987619,1736261447279,-500.0,0.00019452,3]
[347987621,1736261447288,-500.0,0.00019452,3]
[347987623,1736261447297,-500.0,0.00019452,3]
[347987625,1736261447307,-500.0,0.00019452,3]
[347987627,1736261447316,-482.38271864,0.00019452,3]
[347987629,1736261447326,-500.0,0.00019452,3]
[347987630,1736261447335,-500.0,0.00019452,3]
[347987631,1736261447344,-504.89181875,0.00019452,3]
[347987632,1736261447354,-500.0,0.00019452,3]
[347987633,1736261447364,-500.0,0.00019452,3]
[347987634,1736261447373,-500.0,0.00019452,3]
[347987635,1736261447382,-500.0,0.00019452,3]
[347987636,1736261447391,-663.42,0.00019452,3]
[347987637,1736261447400,-500.0,0.00019452,3]
[347987638,1736261447409,-548.97,0.00019452,3]
[347987639,1736261447418,-500.0,0.00019452,3]
[347987640,1736261447427,-505.09473128,0.00019452,3]
[347987641,1736261447437,-500.0,0.00019452,3]
[347987642,1736261447446,-500.0,0.00019452,3]
[347987643,1736261447455,-500.0,0.00019452,3]
[347987644,1736261447464,-500.0,0.00019452,3]
[347987645,1736261447474,-500.0,0.00019452,3]
[347987646,1736261447483,-500.0,0.00019452,3]
[347987647,1736261447492,-500.0,0.00019452,3]
[347987648,1736261447504,-508.04202133,0.00019452,3]
[347987649,1736261447515,-500.0,0.00019452,3]
[347987650,1736261447524,-521.8325064,0.00019452,3]
[347987651,1736261447533,-500.0,0.00019452,3]
[347987652,1736261447542,-500.0,0.00019452,3]
[347987653,1736261447551,-502.81989067,0.00019452,3]
[347987654,1736261447561,-500.0,0.00019452,3]
[347987655,1736261447570,-644.99870779,0.00019452,3]
[347987656,1736261447579,-500.0,0.00019452,3]
[347987657,1736261447589,-500.0,0.00019452,3]
[347987658,1736261447598,-500.0,0.00019452,3]
[347987659,1736261447607,-500.0,0.00019452,3]
[347987660,1736261447616,-518.21466965,0.00019452,3]
[347987661,1736261447625,-500.0,0.00019452,3]
[347987662,1736261447634,-1369.92,0.00019452,3]
[347987663,1736261447643,-500.0,0.00019452,3]
[347987664,1736261447653,-500.0,0.00019452,3]
[347987665,1736261447662,-500.0,0.00019452,3]
[347987666,1736261447671,-500.0,0.00019452,3]
[347987667,1736261447680,-500.0,0.00019452,3]
[347987668,1736261447689,-500.0,0.00019452,3]
[347987669,1736261447699,-511.19616778,0.00019452,3]
[347987670,1736261447708,-593.94217641,0.00019452,3]
[347987671,1736261447717,-500.0,0.00019452,3]
[347987672,1736261447726,-10072.58,0.00019452,3]
[347987673,1736261447735,-500.0,0.00019452,3]
[347987674,1736261447745,-500.0,0.00019452,3]
[347987675,1736261447757,-500.0,0.00019452,3]
[347987676,1736261447766,-500.0,0.00019452,3]
[347987677,1736261447775,-500.0,0.00019452,3]
[347987678,1736261447784,-500.0,0.00019452,3]
[347987679,1736261447793,-151.0,0.00019452,2]
[347987680,1736261447803,-500.0,0.00019452,3]
[347987681,1736261447812,-151.0,0.00019452,2]
[347987682,1736261447822,-151.0,0.00019452,2]
[347987683,1736261447831,-151.0,0.00019452,2]
[347987684,1736261447839,-500.0,0.00019452,3]
[347987685,1736261447849,-920.02,0.00019452,3]
[347987686,1736261447858,-1881.67,0.00019452,3]
[347987687,1736261447867,-500.0,0.00019452,3]
[347987688,1736261447877,-500.0,0.00019452,3]
[347987690,1736261447886,-500.0,0.00019452,3]
[347987692,1736261447895,-249.92052696,0.00019452,3]
[347987759,1736261448612,-500.0,0.00019173,2]
[347987761,1736261448623,-500.58599813,0.00019173,2]
[347987763,1736261448632,-500.0,0.00019173,2]
[347987765,1736261448642,-271.03499006,0.00019173,2]
[347987767,1736261448651,-248.87901181,0.00019173,2]
[347989587,1736261964055,316.076862,0.00013973,2]
[347989693,1736262632079,-500.0,0.00017525,2]
[347989695,1736262632088,-4952.16546353,0.00017797,2]
[347989697,1736262632100,-5722.58055947,0.00017797,2]
[347989699,1736262632110,-592.89022755,0.00018401,2]
[347989701,1736262632119,-153.0,0.00018451,2]
[347989703,1736262632128,-153.0,0.00018451,2]
[347989705,1736262632138,-153.0,0.00018451,2]
[347989707,1736262632148,-153.0,0.00018451,2]
[347989709,1736262632157,-153.0,0.00018451,2]
[347989711,1736262632166,-153.0,0.00018451,2]
[347989713,1736262632176,-153.0,0.00018451,2]
[347989715,1736262632186,-153.0,0.00018451,2]
[347989717,1736262632196,-153.0,0.00018451,2]
[347989719,1736262632205,-153.0,0.00018451,2]
[347989721,1736262632215,-153.0,0.00018451,2]
[347989723,1736262632225,-153.0,0.00018451,2]
[347989725,1736262632235,-153.0,0.00018451,2]
[347989727,1736262632245,-153.0,0.00018451,2]
[347989729,1736262632255,-153.0,0.00018451,2]
[347989732,1736262632265,-153.0,0.00018451,2]
[347989734,1736262632275,-153.0,0.00018451,2]
[347989736,1736262632285,-153.0,0.00018451,2]
[347989738,1736262632295,-153.0,0.00018451,2]
[347989740,1736262632304,-153.0,0.00018451,2]
[347989742,1736262632314,-153.0,0.00018451,2]
[347989744,1736262632323,-153.0,0.00018451,2]
[347989746,1736262632333,-153.0,0.00018451,2]
[347989748,1736262632343,-153.0,0.00018451,2]
[347989750,1736262632352,-153.0,0.00018451,2]
[347989752,1736262632362,-153.0,0.00018451,2]
[347989754,1736262632371,-153.0,0.00018451,2]
[347989756,1736262632380,-153.0,0.00018451,2]
[347989758,1736262632390,-153.0,0.00018451,2]
[347989759,1736262632399,-153.0,0.00018451,2]
[347989761,1736262632408,-153.0,0.00018451,2]
[347989763,1736262632418,-43.45371053,0.00018451,2]
[347989766,1736262632430,-109.54628947,0.00018451,2]
[347989768,1736262632439,-153.0,0.00018451,2]
[347989770,1736262632448,-153.0,0.00018451,2]
[347989771,1736262632458,-153.0,0.00018451,2]
[347989773,1736262632468,-153.0,0.00018451,2]
[347989775,1736262632479,-153.0,0.00018451,2]
[347989777,1736262632488,-153.0,0.00018451,2]
[347989779,1736262632498,-153.0,0.00018451,2]
[347989781,1736262632507,-153.0,0.00018451,2]
[347989783,1736262632516,-1.26273353,0.00018451,2]
[347989785,1736262632527,-151.73726647,0.00018451,2]
[347989787,1736262632536,-153.0,0.00018451,2]
[347989789,1736262632546,-54.31273353,0.00018451,2]
[347989791,1736262632558,-98.68726647,0.00018451,2]
[347989793,1736262632567,-153.0,0.00018451,2]
[347989795,1736262632576,-127.48270353,0.00018451,2]
[347989797,1736262632588,-25.51729647,0.00018451,2]
[347989798,1736262632597,-600.895,0.0001848,2]
[347989799,1736262632606,-102.96551566,0.000185,2]
[347989800,1736262632617,-1897.03448533,0.000185,2]
[347989801,1736262632626,-150.0,0.00018639,2]
[347989802,1736262632635,-2081.0,0.00018639,2]
[347989803,1736262632646,-535.0,0.00018639,2]
[347989804,1736262632655,-2317.0,0.00018639,2]
[347989805,1736262632664,-150.0,0.000188,2]
[347989806,1736262632673,-180.88906538,0.000189,2]
[347989807,1736262632682,-3182.44332162,0.00019,2]
[347989808,1736262632694,-2181.79366647,0.00019,2]
[347989810,1736262632869,-300.000001,0.00019,2]
[347989812,1736262632880,-302.9394212,0.00019,2]
[347989814,1736262632892,-1670.7855,0.0001906,10]
[347989816,1736262632903,-287.11497943,0.0001908,10]
[347989819,1736262632916,-712.88502057,0.0001908,10]
[347989821,1736262632925,-148.0382191,0.000191,2]
[347989823,1736262632938,-39.9617809,0.000191,2]
[347989825,1736262632949,-1000.0,0.000191,10]
[347989827,1736262632962,-300.0,0.000191,8]
[347989829,1736262632972,-152.0,0.00019101,2]
[347989831,1736262632983,-190.02328871,0.00019166,2]
[347989833,1736262632994,-626.99161193,0.00019173,2]
[347989835,1736262633005,-203.66318129,0.00019173,2]
[347989837,1736262633015,-500.31570923,0.00019173,2]
[347989839,1736262633024,-500.0,0.00019173,2]
[347989841,1736262633035,-499.0,0.00019177,2]
[347989843,1736262633046,-263.33340352,0.00019177,2]
[347989845,1736262633057,-502.00633006,0.00019178,2]
[347989847,1736262633068,-500.0,0.00019178,2]
[347989849,1736262633079,-500.0,0.00019178,2]
[347989851,1736262633090,-500.0,0.00019178,2]
[347989853,1736262633101,-500.0,0.00019178,2]
[347989855,1736262633111,-508.90247428,0.00019178,2]
[347989857,1736262633122,-500.0,0.00019178,2]
[347989859,1736262633132,-500.0,0.00019178,2]
[347989861,1736262633142,-500.0,0.00019178,2]
[347989863,1736262633152,-500.0,0.00019178,2]
[347989865,1736262633162,-500.0,0.00019178,2]
[347989867,1736262633174,-500.0,0.00019178,2]
[347989869,1736262633184,-500.0,0.00019178,2]